[Event "December 19 Early 2023"]
[Site "https://www.chess.com"]
[Date "2023.12.19"]
[Round "3"]
[White "Pogorelskikh, Sofia"]
[Black "Reprintsev, Alexander"]
[Result "1-0"]
[Board "205"]
[TimeControl "180+1"]
[WhiteFideId "44164548"]
[BlackFideId "14100541"]
[WhiteElo "2031"]
[BlackElo "2229"]
[WhiteTeam "SRB"]
[BlackTeam "UKR"]
[WhiteClock "0:01:19"]
[BlackClock "0:00:00"]

1. e4 {[%clk 0:03:00]}  d5 {[%clk 0:02:59]} 2. e5 {[%clk 0:02:50]}  c5 {[%clk 0:02:58]} 3. d4 {[%clk 0:02:46]}  Nc6 {[%clk 0:02:55]} 4. c3 {[%clk 0:02:42]}  Bf5 {[%clk 0:02:47]} 5. g4 {[%clk 0:02:22]}  Be4 {[%clk 0:02:43]} 6. f3 {[%clk 0:02:21]}  Bxb1 {[%clk 0:02:42]} 7. Rxb1 {[%clk 0:02:20]}  e6 {[%clk 0:02:42]} 8. Be3 {[%clk 0:02:08]}  cxd4 {[%clk 0:02:39]} 9. cxd4 {[%clk 0:02:02]}  Bb4+ {[%clk 0:02:38]} 10. Kf2 {[%clk 0:02:02]}  Qh4+ {[%clk 0:02:37]} 11. Kg2 {[%clk 0:02:01]}  f6 {[%clk 0:02:34]} 12. Bf2 {[%clk 0:01:50]}  Qh6 {[%clk 0:02:33]} 13. Bb5 {[%clk 0:01:46]}  Ne7 {[%clk 0:02:27]} 14. Ne2 {[%clk 0:01:38]}  O-O {[%clk 0:02:20]} 15. a3 {[%clk 0:01:35]}  Bd2 {[%clk 0:00:00]} 16. Bg3 {[%clk 0:01:19]} 1-0

[Event "December 19 Early 2023"]
[Site "https://www.chess.com"]
[Date "2023.12.19"]
[Round "3"]
[White "Player, Edmund C"]
[Black "Parfenov, Viktor N."]
[Result "0-1"]
[Board "206"]
[TimeControl "180+1"]
[WhiteFideId "406520"]
[BlackFideId "4165969"]
[WhiteElo "2015"]
[BlackElo "2093"]
[WhiteTeam "ENG"]
[BlackTeam "RUS"]
[WhiteClock "0:00:00"]
[BlackClock "0:01:15"]

1. Nc3 {[%clk 0:03:00]}  e5 {[%clk 0:02:57]} 2. e4 {[%clk 0:03:01]}  Nf6 {[%clk 0:02:56]} 3. Bc4 {[%clk 0:03:01]}  Nxe4 {[%clk 0:02:55]} 4. Qh5 {[%clk 0:03:00]}  Nd6 {[%clk 0:02:54]} 5. Bb3 {[%clk 0:03:00]}  Be7 {[%clk 0:02:52]} 6. Nf3 {[%clk 0:02:50]}  Nc6 {[%clk 0:02:51]} 7. Nxe5 {[%clk 0:02:49]}  g6 {[%clk 0:02:50]} 8. Nxc6 {[%clk 0:02:14]}  dxc6 {[%clk 0:02:49]} 9. Qf3 {[%clk 0:02:07]}  O-O {[%clk 0:02:45]} 10. d3 {[%clk 0:02:00]}  Nf5 {[%clk 0:02:45]} 11. Be3 {[%clk 0:01:42]}  Nh4 {[%clk 0:02:19]} 12. Qg3 {[%clk 0:01:06]}  Bd6 {[%clk 0:02:19]} 13. Qg5 {[%clk 0:01:05]}  Qxg5 {[%clk 0:02:10]} 14. Bxg5 {[%clk 0:01:05]}  Nxg2+ {[%clk 0:02:11]} 15. Ke2 {[%clk 0:00:48]}  Nf4+ {[%clk 0:01:58]} 16. Kf3 {[%clk 0:00:43]}  Ne6 {[%clk 0:01:57]} 17. Bh6 {[%clk 0:00:28]}  Re8 {[%clk 0:01:53]} 18. Ne4 {[%clk 0:00:22]}  Be5 {[%clk 0:01:50]} 19. c3 {[%clk 0:00:17]}  b6 {[%clk 0:01:49]} 20. d4 {[%clk 0:00:15]}  Bg7 {[%clk 0:01:49]} 21. Rae1 {[%clk 0:00:14]}  Bb7 {[%clk 0:01:49]} 22. Bxg7 {[%clk 0:00:13]}  Kxg7 {[%clk 0:01:49]} 23. h4 {[%clk 0:00:13]}  c5 {[%clk 0:01:48]} 24. d5 {[%clk 0:00:11]}  Nf8 {[%clk 0:01:38]} 25. h5 {[%clk 0:00:11]}  h6 {[%clk 0:01:36]} 26. hxg6 {[%clk 0:00:10]}  fxg6 {[%clk 0:01:36]} 27. Reg1 {[%clk 0:00:08]}  Nd7 {[%clk 0:01:34]} 28. Ng3 {[%clk 0:00:07]}  Ne5+ {[%clk 0:01:31]} 29. Ke2 {[%clk 0:00:05]}  c4 {[%clk 0:01:21]} 30. Bc2 {[%clk 0:00:04]}  Bxd5 {[%clk 0:01:16]} 31. Nf5+ {[%clk 0:00:02]}  Kf6 {[%clk 0:01:16]} 32. f3 {[%clk 0:00:00]}  Bxf3+ {[%clk 0:01:15]} 0-1

[Event "December 19 Early 2023"]
[Site "https://www.chess.com"]
[Date "2023.12.19"]
[Round "3"]
[White "Kanyamarala, Tarun"]
[Black "Rodriguez Santiago, Jaime"]
[Result "1-0"]
[Board "207"]
[TimeControl "180+1"]
[WhiteFideId "45004714"]
[BlackFideId "3100898"]
[WhiteElo "2318"]
[BlackElo "2025"]
[WhiteTeam "IRL"]
[BlackTeam "PUR"]
[WhiteClock "0:00:02"]
[BlackClock "0:00:11"]

1. e4 {[%clk 0:03:00]}  c6 {[%clk 0:02:57]} 2. d3 {[%clk 0:02:59]}  d5 {[%clk 0:02:57]} 3. Nf3 {[%clk 0:02:59]}  dxe4 {[%clk 0:02:56]} 4. dxe4 {[%clk 0:02:58]}  Qxd1+ {[%clk 0:02:57]} 5. Kxd1 {[%clk 0:02:58]}  Bg4 {[%clk 0:02:57]} 6. Be2 {[%clk 0:02:56]}  Nd7 {[%clk 0:02:57]} 7. Nfd2 {[%clk 0:02:56]}  Bxe2+ {[%clk 0:02:56]} 8. Kxe2 {[%clk 0:02:57]}  g6 {[%clk 0:02:51]} 9. Nc4 {[%clk 0:02:51]}  Bg7 {[%clk 0:02:50]} 10. c3 {[%clk 0:02:50]}  Ngf6 {[%clk 0:02:45]} 11. f3 {[%clk 0:02:49]}  O-O-O {[%clk 0:02:36]} 12. Be3 {[%clk 0:02:45]}  Kb8 {[%clk 0:02:33]} 13. a4 {[%clk 0:02:44]}  Ne8 {[%clk 0:02:25]} 14. Rd1 {[%clk 0:02:40]}  Nd6 {[%clk 0:02:08]} 15. Bf4 {[%clk 0:02:04]}  Bf8 {[%clk 0:01:13]} 16. Nxd6 {[%clk 0:01:42]}  exd6 {[%clk 0:01:11]} 17. Bxd6+ {[%clk 0:01:43]}  Bxd6 {[%clk 0:01:10]} 18. Rxd6 {[%clk 0:01:44]}  Kc7 {[%clk 0:01:10]} 19. Rd1 {[%clk 0:01:33]}  Nc5 {[%clk 0:01:09]} 20. Nd2 {[%clk 0:01:18]}  Nd3 {[%clk 0:00:57]} 21. Nc4 {[%clk 0:01:13]}  Nf4+ {[%clk 0:00:56]} 22. Kf2 {[%clk 0:01:12]}  b5 {[%clk 0:00:41]} 23. axb5 {[%clk 0:01:09]}  cxb5 {[%clk 0:00:41]} 24. Ne5 {[%clk 0:00:51]}  Rxd1 {[%clk 0:00:39]} 25. Rxd1 {[%clk 0:00:48]}  f6 {[%clk 0:00:37]} 26. Rd7+ {[%clk 0:00:40]}  Kb6 {[%clk 0:00:36]} 27. Nf7 {[%clk 0:00:31]}  Ra8 {[%clk 0:00:35]} 28. Rd6+ {[%clk 0:00:21]}  Kc5 {[%clk 0:00:35]} 29. g3 {[%clk 0:00:18]}  Nh5 {[%clk 0:00:28]} 30. Ra6 {[%clk 0:00:16]}  Kc4 {[%clk 0:00:26]} 31. Nd6+ {[%clk 0:00:16]}  Kb3 {[%clk 0:00:26]} 32. Nxb5 {[%clk 0:00:14]}  Kxb2 {[%clk 0:00:27]} 33. Ke3 {[%clk 0:00:08]}  Rb8 {[%clk 0:00:25]} 34. c4 {[%clk 0:00:07]}  Kb3 {[%clk 0:00:25]} 35. Kd4 {[%clk 0:00:06]}  Ng7 {[%clk 0:00:19]} 36. Nxa7 {[%clk 0:00:03]}  f5 {[%clk 0:00:18]} 37. c5 {[%clk 0:00:03]}  fxe4 {[%clk 0:00:18]} 38. fxe4 {[%clk 0:00:04]}  Kb4 {[%clk 0:00:11]} 39. Nc6+ {[%clk 0:00:02]} 1-0

[Event "December 19 Early 2023"]
[Site "https://www.chess.com"]
[Date "2023.12.19"]
[Round "3"]
[White "Fernandez Sanchez, Mario Andres"]
[Black "Musalov, Ruslan"]
[Result "1-0"]
[Board "208"]
[TimeControl "180+1"]
[WhiteFideId "6501621"]
[BlackFideId "4141490"]
[WhiteElo "2050"]
[BlackElo "2268"]
[WhiteTeam "CRC"]
[BlackTeam "RUS"]
[WhiteClock "0:02:14"]
[BlackClock "0:01:15"]

1. d4 {[%clk 0:03:00]}  Nf6 {[%clk 0:02:59]} 2. Nc3 {[%clk 0:03:00]}  g6 {[%clk 0:03:00]} 3. e4 {[%clk 0:03:00]}  d6 {[%clk 0:03:00]} 4. Bf4 {[%clk 0:03:00]}  Bg7 {[%clk 0:03:01]} 5. Qd2 {[%clk 0:03:00]}  O-O {[%clk 0:03:02]} 6. O-O-O {[%clk 0:02:58]}  c6 {[%clk 0:03:02]} 7. Bh6 {[%clk 0:02:56]}  Nbd7 {[%clk 0:03:00]} 8. h4 {[%clk 0:02:52]}  b5 {[%clk 0:03:00]} 9. f3 {[%clk 0:02:51]}  b4 {[%clk 0:02:57]} 10. Nce2 {[%clk 0:02:51]}  a5 {[%clk 0:02:56]} 11. h5 {[%clk 0:02:50]}  Nxh5 {[%clk 0:02:56]} 12. Rxh5 {[%clk 0:02:50]}  Nf6 {[%clk 0:02:46]} 13. Bxg7 {[%clk 0:02:40]}  Kxg7 {[%clk 0:02:45]} 14. Qh6+ {[%clk 0:02:37]}  Kg8 {[%clk 0:02:45]} 15. Rh1 {[%clk 0:02:36]}  Qc7 {[%clk 0:02:22]} 16. g4 {[%clk 0:02:31]}  a4 {[%clk 0:02:09]} 17. Nh3 {[%clk 0:02:26]}  b3 {[%clk 0:02:07]} 18. cxb3 {[%clk 0:02:25]}  axb3 {[%clk 0:02:08]} 19. a3 {[%clk 0:02:23]}  c5 {[%clk 0:01:47]} 20. d5 {[%clk 0:02:20]}  c4 {[%clk 0:01:36]} 21. Ng5 {[%clk 0:02:19]}  c3 {[%clk 0:01:33]} 22. Nxc3 {[%clk 0:02:19]}  Rxa3 {[%clk 0:01:15]} 23. Nxh7 {[%clk 0:02:14]} 1-0

[Event "December 19 Early 2023"]
[Site "https://www.chess.com"]
[Date "2023.12.19"]
[Round "3"]
[White "Fernandez Hernandez, Gerardo"]
[Black "Olsson, Linus"]
[Result "0-1"]
[Board "209"]
[TimeControl "180+1"]
[WhiteFideId "2207400"]
[BlackFideId "1706098"]
[WhiteElo "2258"]
[BlackElo "2222"]
[WhiteTeam "ESP"]
[BlackTeam "SWE"]
[WhiteClock "0:00:00"]
[BlackClock "0:00:04"]

1. e4 {[%clk 0:03:00]}  e5 {[%clk 0:02:56]} 2. Nf3 {[%clk 0:03:00]}  Nc6 {[%clk 0:02:57]} 3. d4 {[%clk 0:03:00]}  exd4 {[%clk 0:02:56]} 4. Bc4 {[%clk 0:03:01]}  Bc5 {[%clk 0:02:51]} 5. c3 {[%clk 0:03:00]}  d3 {[%clk 0:02:41]} 6. Qxd3 {[%clk 0:02:57]}  d6 {[%clk 0:02:39]} 7. Bf4 {[%clk 0:02:44]}  Nge7 {[%clk 0:02:31]} 8. O-O {[%clk 0:02:23]}  O-O {[%clk 0:02:31]} 9. b4 {[%clk 0:02:21]}  Bb6 {[%clk 0:02:30]} 10. a4 {[%clk 0:02:22]}  a6 {[%clk 0:02:26]} 11. a5 {[%clk 0:02:20]}  Ba7 {[%clk 0:02:24]} 12. Nbd2 {[%clk 0:02:13]}  Be6 {[%clk 0:02:20]} 13. Rfe1 {[%clk 0:01:50]}  Ng6 {[%clk 0:02:19]} 14. Be3 {[%clk 0:01:47]}  Nge5 {[%clk 0:02:15]} 15. Qf1 {[%clk 0:01:28]}  Nxc4 {[%clk 0:02:12]} 16. Nxc4 {[%clk 0:01:25]}  h6 {[%clk 0:02:09]} 17. Bxa7 {[%clk 0:01:23]}  Rxa7 {[%clk 0:02:10]} 18. Nd4 {[%clk 0:01:20]}  Nxd4 {[%clk 0:02:01]} 19. cxd4 {[%clk 0:01:21]}  Qg5 {[%clk 0:01:55]} 20. d5 {[%clk 0:01:13]}  Bd7 {[%clk 0:01:53]} 21. Re3 {[%clk 0:01:06]}  Raa8 {[%clk 0:01:50]} 22. Qd3 {[%clk 0:01:00]}  Bb5 {[%clk 0:01:46]} 23. Qd4 {[%clk 0:00:56]}  Rae8 {[%clk 0:01:22]} 24. Rg3 {[%clk 0:00:51]}  Rxe4 {[%clk 0:00:51]} 25. Qxe4 {[%clk 0:00:48]}  Qf6 {[%clk 0:00:50]} 26. Rd1 {[%clk 0:00:35]}  Re8 {[%clk 0:00:43]} 27. Qd3 {[%clk 0:00:35]}  Qf4 {[%clk 0:00:35]} 28. Re3 {[%clk 0:00:13]}  Rxe3 {[%clk 0:00:28]} 29. Qxe3 {[%clk 0:00:14]}  Qxc4 {[%clk 0:00:26]} 30. Qd2 {[%clk 0:00:08]}  Qb3 {[%clk 0:00:14]} 31. h3 {[%clk 0:00:07]}  Bc4 {[%clk 0:00:05]} 32. Kh2 {[%clk 0:00:04]}  Kh7 {[%clk 0:00:03]} 33. g3 {[%clk 0:00:03]}  Bb5 {[%clk 0:00:02]} 34. Rc1 {[%clk 0:00:02]}  c6 {[%clk 0:00:02]} 35. Qc2+ {[%clk 0:00:02]}  Qxc2 {[%clk 0:00:02]} 36. Rxc2 {[%clk 0:00:03]}  cxd5 {[%clk 0:00:03]} 37. Rd2 {[%clk 0:00:03]}  Bc4 {[%clk 0:00:03]} 38. f4 {[%clk 0:00:02]}  Kg6 {[%clk 0:00:03]} 39. Kg2 {[%clk 0:00:03]}  Kf5 {[%clk 0:00:04]} 40. Kf3 {[%clk 0:00:03]}  Ke6 {[%clk 0:00:04]} 41. g4 {[%clk 0:00:03]}  Kd7 {[%clk 0:00:05]} 42. Ke3 {[%clk 0:00:04]}  Kc6 {[%clk 0:00:05]} 43. Kd4 {[%clk 0:00:04]}  Kb5 {[%clk 0:00:06]} 44. Kc3 {[%clk 0:00:03]}  Bf1 {[%clk 0:00:07]} 45. Rf2 {[%clk 0:00:03]}  Bxh3 {[%clk 0:00:06]} 46. g5 {[%clk 0:00:02]}  h5 {[%clk 0:00:06]} 47. Re2 {[%clk 0:00:02]}  Be6 {[%clk 0:00:06]} 48. f5 {[%clk 0:00:01]}  Bxf5 {[%clk 0:00:06]} 49. Re7 {[%clk 0:00:01]}  h4 {[%clk 0:00:05]} 50. Rxb7+ {[%clk 0:00:02]}  Kc6 {[%clk 0:00:05]} 51. Rxf7 {[%clk 0:00:02]}  g6 {[%clk 0:00:05]} 52. Re7 {[%clk 0:00:01]}  h3 {[%clk 0:00:05]} 53. Re2 {[%clk 0:00:02]}  Be4 {[%clk 0:00:04]} 54. Rd2 {[%clk 0:00:00]}  Bg2 {[%clk 0:00:04]} 0-1

[Event "December 19 Early 2023"]
[Site "https://www.chess.com"]
[Date "2023.12.19"]
[Round "3"]
[White "Deveci, Huseyin Said"]
[Black "Rogov, Matfey"]
[Result "1/2-1/2"]
[Board "210"]
[TimeControl "180+1"]
[WhiteFideId "26322455"]
[BlackFideId "44191308"]
[WhiteElo "1954"]
[BlackElo "2057"]
[WhiteTeam "TUR"]
[BlackTeam "RUS"]
[WhiteClock "0:00:04"]
[BlackClock "0:00:04"]

1. e4 {[%clk 0:03:00]}  e6 {[%clk 0:02:59]} 2. d4 {[%clk 0:03:00]}  d5 {[%clk 0:02:59]} 3. Nd2 {[%clk 0:03:01]}  Nf6 {[%clk 0:02:58]} 4. e5 {[%clk 0:03:01]}  Nfd7 {[%clk 0:02:59]} 5. f4 {[%clk 0:03:02]}  c5 {[%clk 0:02:59]} 6. c3 {[%clk 0:03:02]}  Nc6 {[%clk 0:02:59]} 7. Ndf3 {[%clk 0:03:03]}  f6 {[%clk 0:02:59]} 8. g3 {[%clk 0:02:59]}  Qb6 {[%clk 0:02:59]} 9. Kf2 {[%clk 0:02:59]}  cxd4 {[%clk 0:02:59]} 10. cxd4 {[%clk 0:02:59]}  fxe5 {[%clk 0:02:59]} 11. fxe5 {[%clk 0:03:00]}  Ndxe5 {[%clk 0:02:58]} 12. Nxe5 {[%clk 0:03:01]}  Nxe5 {[%clk 0:02:59]} 13. Kg2 {[%clk 0:03:01]}  Nf7 {[%clk 0:02:48]} 14. Nf3 {[%clk 0:03:01]}  Bd6 {[%clk 0:02:48]} 15. Bd3 {[%clk 0:03:01]}  O-O {[%clk 0:02:47]} 16. Rf1 {[%clk 0:03:02]}  Bd7 {[%clk 0:02:33]} 17. Qc2 {[%clk 0:02:49]}  h6 {[%clk 0:01:55]} 18. Bh7+ {[%clk 0:02:38]}  Kh8 {[%clk 0:01:55]} 19. Nh4 {[%clk 0:02:38]}  Rfc8 {[%clk 0:00:55]} 20. Qg6 {[%clk 0:01:58]}  Be8 {[%clk 0:00:39]} 21. Rxf7 {[%clk 0:01:57]}  Bxf7 {[%clk 0:00:35]} 22. Qxf7 {[%clk 0:01:58]}  Kxh7 {[%clk 0:00:29]} 23. Bxh6 {[%clk 0:01:56]}  Qxd4 {[%clk 0:00:29]} 24. Rd1 {[%clk 0:01:13]}  Qe4+ {[%clk 0:00:19]} 25. Kh3 {[%clk 0:01:11]}  Kxh6 {[%clk 0:00:18]} 26. Re1 {[%clk 0:01:04]}  Rf8 {[%clk 0:00:12]} 27. Qxe6+ {[%clk 0:00:11]}  Qxe6+ {[%clk 0:00:10]} 28. Rxe6+ {[%clk 0:00:12]}  Rf6 {[%clk 0:00:11]} 29. Nf5+ {[%clk 0:00:12]}  Kg5 {[%clk 0:00:11]} 30. Rxf6 {[%clk 0:00:12]}  Kxf6 {[%clk 0:00:09]} 31. Nxd6 {[%clk 0:00:12]}  a6 {[%clk 0:00:10]} 32. Nxb7 {[%clk 0:00:12]}  Rb8 {[%clk 0:00:09]} 33. Nc5 {[%clk 0:00:12]}  Rxb2 {[%clk 0:00:09]} 34. a4 {[%clk 0:00:12]}  d4 {[%clk 0:00:07]} 35. Kg4 {[%clk 0:00:12]}  Rb4 {[%clk 0:00:06]} 36. Kf3 {[%clk 0:00:11]}  Rc4 {[%clk 0:00:06]} 37. Nxa6 {[%clk 0:00:10]}  Rxa4 {[%clk 0:00:05]} 38. Nc5 {[%clk 0:00:11]}  Rc4 {[%clk 0:00:04]} 39. Nd3 {[%clk 0:00:10]}  Ke6 {[%clk 0:00:04]} 40. Ke4 {[%clk 0:00:10]}  g5 {[%clk 0:00:04]} 41. h4 {[%clk 0:00:09]}  gxh4 {[%clk 0:00:04]} 42. gxh4 {[%clk 0:00:10]}  Kd6 {[%clk 0:00:04]} 43. h5 {[%clk 0:00:10]}  Ra4 {[%clk 0:00:04]} 44. h6 {[%clk 0:00:09]}  Ra8 {[%clk 0:00:02]} 45. Kxd4 {[%clk 0:00:10]}  Rh8 {[%clk 0:00:02]} 46. Ne5 {[%clk 0:00:10]}  Ke6 {[%clk 0:00:02]} 47. Ng4 {[%clk 0:00:05]}  Kf5 {[%clk 0:00:03]} 48. Ne3+ {[%clk 0:00:05]}  Kg5 {[%clk 0:00:03]} 49. Ke5 {[%clk 0:00:06]}  Rxh6 {[%clk 0:00:03]} 50. Nf5 {[%clk 0:00:07]}  Ra6 {[%clk 0:00:03]} 51. Nd4 {[%clk 0:00:07]}  Ra5+ {[%clk 0:00:03]} 52. Ke4 {[%clk 0:00:07]}  Kf6 {[%clk 0:00:04]} 53. Kf4 {[%clk 0:00:06]}  Ra4 {[%clk 0:00:03]} 54. Ke4 {[%clk 0:00:07]}  Ke7 {[%clk 0:00:03]} 55. Ke5 {[%clk 0:00:07]}  Ra5+ {[%clk 0:00:03]} 56. Ke4 {[%clk 0:00:07]}  Kd6 {[%clk 0:00:04]} 57. Nf5+ {[%clk 0:00:05]}  Ke6 {[%clk 0:00:03]} 58. Nd4+ {[%clk 0:00:06]}  Kf6 {[%clk 0:00:03]} 59. Kf4 {[%clk 0:00:06]}  Rh5 {[%clk 0:00:04]} 60. Ke4 {[%clk 0:00:06]}  Rh4+ {[%clk 0:00:04]} 61. Kd5 {[%clk 0:00:06]}  Rh8 {[%clk 0:00:04]} 62. Ke4 {[%clk 0:00:06]}  Rd8 {[%clk 0:00:05]} 63. Nf3 {[%clk 0:00:04]}  Ra8 {[%clk 0:00:04]} 64. Nd4 {[%clk 0:00:04]}  Ra5 {[%clk 0:00:04]} 1/2-1/2

[Event "December 19 Early 2023"]
[Site "https://www.chess.com"]
[Date "2023.12.19"]
[Round "3"]
[White "Hernando Rodrigo, Julio Antonio"]
[Black "Semenova, Alina"]
[Result "1-0"]
[Board "213"]
[TimeControl "180+1"]
[WhiteFideId "2208350"]
[BlackFideId "24113875"]
[WhiteElo "2260"]
[BlackElo "1827"]
[WhiteTeam "ESP"]
[BlackTeam "RUS"]
[WhiteClock "0:01:48"]
[BlackClock "0:01:42"]

1. d4 {[%clk 0:03:00]}  Nf6 {[%clk 0:02:54]} 2. c4 {[%clk 0:02:58]}  e6 {[%clk 0:02:55]} 3. Nf3 {[%clk 0:02:56]}  b6 {[%clk 0:02:54]} 4. g3 {[%clk 0:02:55]}  Bb7 {[%clk 0:02:54]} 5. Bg2 {[%clk 0:02:52]}  Be7 {[%clk 0:02:54]} 6. O-O {[%clk 0:02:52]}  O-O {[%clk 0:02:54]} 7. Re1 {[%clk 0:02:51]}  c5 {[%clk 0:02:49]} 8. Nc3 {[%clk 0:02:46]}  cxd4 {[%clk 0:02:46]} 9. Nxd4 {[%clk 0:02:45]}  Bxg2 {[%clk 0:02:47]} 10. Kxg2 {[%clk 0:02:46]}  d5 {[%clk 0:02:41]} 11. cxd5 {[%clk 0:02:44]}  Nxd5 {[%clk 0:02:41]} 12. Nxd5 {[%clk 0:02:30]}  Qxd5+ {[%clk 0:02:41]} 13. e4 {[%clk 0:02:30]}  Qd7 {[%clk 0:02:40]} 14. Bf4 {[%clk 0:02:24]}  Nc6 {[%clk 0:02:34]} 15. Nxc6 {[%clk 0:02:19]}  Qxc6 {[%clk 0:02:34]} 16. Rc1 {[%clk 0:02:17]}  Qb5 {[%clk 0:02:28]} 17. Qb3 {[%clk 0:02:11]}  Qxb3 {[%clk 0:02:23]} 18. axb3 {[%clk 0:02:12]}  Rac8 {[%clk 0:02:24]} 19. Red1 {[%clk 0:02:09]}  g5 {[%clk 0:02:01]} 20. Be3 {[%clk 0:02:03]}  Bf6 {[%clk 0:02:00]} 21. Rxc8 {[%clk 0:01:59]}  Rxc8 {[%clk 0:02:00]} 22. Rd7 {[%clk 0:02:00]}  Bxb2 {[%clk 0:01:45]} 23. Rxa7 {[%clk 0:01:57]}  Rc3 {[%clk 0:01:45]} 24. Ra8+ {[%clk 0:01:47]}  Kg7 {[%clk 0:01:42]} 25. Bd4+ {[%clk 0:01:48]} 1-0

[Event "December 19 Early 2023"]
[Site "https://www.chess.com"]
[Date "2023.12.19"]
[Round "3"]
[White "Gurevich, Dmitry"]
[Black "De Souza, Cristiano Gomes"]
[Result "1-0"]
[Board "215"]
[TimeControl "180+1"]
[WhiteFideId "2000407"]
[BlackFideId "2151758"]
[WhiteElo "2506"]
[BlackElo "2068"]
[WhiteTeam "USA"]
[BlackTeam "BRA"]
[WhiteClock "0:00:26"]
[BlackClock "0:00:05"]

1. d4 {[%clk 0:03:00]}  Nf6 {[%clk 0:02:59]} 2. c4 {[%clk 0:03:00]}  g6 {[%clk 0:02:59]} 3. Nc3 {[%clk 0:02:59]}  Bg7 {[%clk 0:02:59]} 4. e4 {[%clk 0:02:58]}  d6 {[%clk 0:02:59]} 5. Nf3 {[%clk 0:02:57]}  O-O {[%clk 0:02:57]} 6. Be2 {[%clk 0:02:56]}  e5 {[%clk 0:02:51]} 7. O-O {[%clk 0:02:55]}  Nc6 {[%clk 0:02:49]} 8. d5 {[%clk 0:02:54]}  Ne7 {[%clk 0:02:49]} 9. Ne1 {[%clk 0:02:53]}  Ne8 {[%clk 0:02:45]} 10. Be3 {[%clk 0:02:52]}  f5 {[%clk 0:02:46]} 11. f3 {[%clk 0:02:52]}  h5 {[%clk 0:02:44]} 12. c5 {[%clk 0:02:50]}  a6 {[%clk 0:02:44]} 13. Na4 {[%clk 0:02:38]}  f4 {[%clk 0:02:41]} 14. Bf2 {[%clk 0:02:37]}  g5 {[%clk 0:02:41]} 15. cxd6 {[%clk 0:02:36]}  Nxd6 {[%clk 0:02:41]} 16. Nc5 {[%clk 0:02:35]}  Kh7 {[%clk 0:02:34]} 17. Rc1 {[%clk 0:02:32]}  Bh6 {[%clk 0:02:31]} 18. Ne6 {[%clk 0:02:26]}  Bxe6 {[%clk 0:02:30]} 19. dxe6 {[%clk 0:02:27]}  Ng6 {[%clk 0:02:25]} 20. Qc2 {[%clk 0:02:20]}  Rc8 {[%clk 0:02:22]} 21. Nd3 {[%clk 0:02:17]}  Qe7 {[%clk 0:02:20]} 22. Qb3 {[%clk 0:02:10]}  Rf6 {[%clk 0:02:06]} 23. Nb4 {[%clk 0:02:09]}  Qxe6 {[%clk 0:01:55]} 24. Nd5 {[%clk 0:02:01]}  Rf7 {[%clk 0:01:46]} 25. Rfd1 {[%clk 0:01:57]}  Rd7 {[%clk 0:01:24]} 26. Nb6 {[%clk 0:01:46]}  Qxb3 {[%clk 0:01:22]} 27. axb3 {[%clk 0:01:45]}  cxb6 {[%clk 0:01:08]} 28. Rxc8 {[%clk 0:01:43]}  Bf8 {[%clk 0:00:49]} 29. Bxb6 {[%clk 0:01:34]}  Kg7 {[%clk 0:00:48]} 30. Bc7 {[%clk 0:01:12]}  Ne7 {[%clk 0:00:41]} 31. Bxd6 {[%clk 0:01:00]}  Rxd6 {[%clk 0:00:20]} 32. Rxd6 {[%clk 0:00:57]}  Nxc8 {[%clk 0:00:20]} 33. Rd7+ {[%clk 0:00:54]}  Kf6 {[%clk 0:00:20]} 34. Rxb7 {[%clk 0:00:47]}  Bc5+ {[%clk 0:00:18]} 35. Kf1 {[%clk 0:00:46]}  Nd6 {[%clk 0:00:19]} 36. Rc7 {[%clk 0:00:42]}  Bd4 {[%clk 0:00:18]} 37. Rc6 {[%clk 0:00:41]}  Ke7 {[%clk 0:00:17]} 38. Rxa6 {[%clk 0:00:40]}  g4 {[%clk 0:00:18]} 39. b4 {[%clk 0:00:39]}  gxf3 {[%clk 0:00:17]} 40. gxf3 {[%clk 0:00:37]}  Kd7 {[%clk 0:00:16]} 41. b5 {[%clk 0:00:35]}  Kc7 {[%clk 0:00:16]} 42. Rc6+ {[%clk 0:00:34]}  Kd7 {[%clk 0:00:15]} 43. b4 {[%clk 0:00:33]}  Nc8 {[%clk 0:00:14]} 44. Rh6 {[%clk 0:00:31]}  Nb6 {[%clk 0:00:12]} 45. Rxh5 {[%clk 0:00:30]}  Na4 {[%clk 0:00:12]} 46. Rh6 {[%clk 0:00:29]}  Kc7 {[%clk 0:00:12]} 47. Rg6 {[%clk 0:00:28]}  Nc3 {[%clk 0:00:05]} 48. h4 {[%clk 0:00:26]} 1-0

[Event "December 19 Early 2023"]
[Site "https://www.chess.com"]
[Date "2023.12.19"]
[Round "3"]
[White "Ratnesan, Ranesh"]
[Black "Stillger, Bernhard"]
[Result "0-1"]
[Board "224"]
[TimeControl "180+1"]
[WhiteFideId "439339"]
[BlackFideId "4610768"]
[WhiteElo "2160"]
[BlackElo "2252"]
[WhiteTeam "ENG"]
[BlackTeam "GER"]
[WhiteClock "0:00:00"]
[BlackClock "0:00:20"]

1. d4 {[%clk 0:03:00]}  Nf6 {[%clk 0:02:56]} 2. c4 {[%clk 0:02:58]}  g6 {[%clk 0:02:56]} 3. Nf3 {[%clk 0:02:53]}  Bg7 {[%clk 0:02:56]} 4. g3 {[%clk 0:02:54]}  O-O {[%clk 0:02:54]} 5. Bg2 {[%clk 0:02:54]}  d5 {[%clk 0:02:54]} 6. O-O {[%clk 0:02:44]}  dxc4 {[%clk 0:02:54]} 7. Qc2 {[%clk 0:02:26]}  Nc6 {[%clk 0:02:20]} 8. Qxc4 {[%clk 0:02:03]}  Be6 {[%clk 0:02:16]} 9. Qa4 {[%clk 0:01:19]}  Nd5 {[%clk 0:02:03]} 10. e3 {[%clk 0:01:01]}  Nb6 {[%clk 0:01:58]} 11. Qb5 {[%clk 0:00:54]}  Bc4 {[%clk 0:01:56]} 12. Qc5 {[%clk 0:00:50]}  Bxf1 {[%clk 0:01:53]} 13. Bxf1 {[%clk 0:00:51]}  Qd6 {[%clk 0:01:48]} 14. Qc2 {[%clk 0:00:47]}  e5 {[%clk 0:01:42]} 15. dxe5 {[%clk 0:00:45]}  Nxe5 {[%clk 0:01:42]} 16. Nxe5 {[%clk 0:00:45]}  Qxe5 {[%clk 0:01:41]} 17. Nc3 {[%clk 0:00:46]}  Rad8 {[%clk 0:01:28]} 18. Bg2 {[%clk 0:00:45]}  c6 {[%clk 0:01:27]} 19. e4 {[%clk 0:00:44]}  Nc4 {[%clk 0:01:19]} 20. Qb3 {[%clk 0:00:41]}  b5 {[%clk 0:01:09]} 21. a4 {[%clk 0:00:34]}  a6 {[%clk 0:00:58]} 22. Bf4 {[%clk 0:00:30]}  Qc5 {[%clk 0:00:51]} 23. Rc1 {[%clk 0:00:29]}  g5 {[%clk 0:00:37]} 24. Bc7 {[%clk 0:00:18]}  Rd2 {[%clk 0:00:36]} 25. Nd1 {[%clk 0:00:13]}  Rc8 {[%clk 0:00:28]} 26. axb5 {[%clk 0:00:04]}  axb5 {[%clk 0:00:26]} 27. Bb6 {[%clk 0:00:00]}  Rxd1+ {[%clk 0:00:20]} 0-1